bitfinex-derivatives/quotes_BTCF0:USTF0_20241217
["timestamp","ask_amount","ask_price","bid_price","bid_amount"]
[1734465708998,8.423e-05,106560.0,106550.0,0.21971558]
[1734465709296,8.423e-05,106560.0,106550.0,0.58051558]
[1734465709488,8.423e-05,106560.0,106550.0,0.21971558]
[1734465710093,8.423e-05,106560.0,106550.0,0.58051558]
[1734465710294,8.423e-05,106560.0,106550.0,0.60319259]
[1734465710493,8.423e-05,106560.0,106550.0,0.58051558]
[1734465710987,8.423e-05,106560.0,106550.0,0.21971558]
[1734465712317,8.423e-05,106560.0,106550.0,0.17151558]
[1734465712599,0.40780323,106560.0,106550.0,0.05605531]
[1734465712810,0.45570323,106560.0,106550.0,0.05605531]
[1734465713103,0.40878423,106560.0,106550.0,0.05605531]
[1734465714600,0.40878423,106560.0,106550.0,0.12371558]
[1734465715897,0.36088423,106560.0,106550.0,0.12371558]
[1734465716996,8.423e-05,106560.0,106550.0,0.12371558]
[1734465717198,0.36088423,106560.0,106550.0,0.12371558]
[1734465718502,0.40648423,106560.0,106550.0,0.05605531]
[1734465718819,0.046927,106550.0,106530.0,0.046929]
[1734465719000,0.16298727,106550.0,106540.0,0.046928]
[1734465719196,0.52378727,106550.0,106520.0,0.04884183]
[1734465719400,0.3608,106530.0,106520.0,0.00904059]
[1734465719608,0.3608,106530.0,106520.0,0.046933]
[1734465719810,0.3608,106530.0,106520.0,0.047433]
[1734465720002,0.407733,106530.0,106520.0,0.047433]
[1734465720400,0.407733,106530.0,106520.0,0.04754622]
[1734465720605,0.83619327,106530.0,106520.0,0.04754622]
[1734465720912,1.13621133,106530.0,106520.0,0.00011322]
[1734465721215,0.046937,106520.0,106510.0,0.04694]
[1734465721504,0.47541533,106520.0,106510.0,0.04694]
[1734465721719,0.046941,106510.0,106480.0,0.40916046]
[1734465721898,0.3608,106500.0,106490.0,0.046948]
[1734465722115,0.3608,106500.0,106490.0,0.04698843]
[1734465722818,0.768546,106500.0,106490.0,0.04698843]
[1734465723111,0.7216,106500.0,106490.0,0.04698843]
[1734465724402,0.768546,106500.0,106490.0,0.04698843]
[1734465724712,0.768546,106500.0,106490.0,0.04748843]
[1734465725704,0.83622433,106500.0,106490.0,0.04748843]
[1734465726007,0.768546,106500.0,106490.0,0.04748843]
[1734465727006,0.3608,106500.0,106490.0,0.11516676]
[1734465727210,0.4086,106510.0,106500.0,0.046946]
[1734465731205,0.3608,106510.0,106500.0,0.11462433]
[1734465731615,0.3608,106510.0,106490.0,0.00054043]
[1734465731813,0.3608,106500.0,106490.0,0.04748943]
[1734465733618,0.4559,106500.0,106490.0,0.04748943]
[1734465740117,0.4088,106500.0,106490.0,0.04748943]
[1734465740315,0.3608,106500.0,106490.0,0.11518327]
[1734465741122,0.0492,106510.0,106500.0,0.046946]
[1734465741320,0.0433,106520.0,106510.0,0.046941]
[1734465741511,0.0433,106520.0,106510.0,0.11463484]
[1734465741711,0.41,106530.0,106510.0,0.11463484]
[1734465741920,0.41,106530.0,106520.0,0.046937]
[1734465742716,0.456933,106530.0,106520.0,0.046937]
[1734465742921,0.41,106530.0,106520.0,0.046937]
[1734465743324,0.456933,106530.0,106520.0,0.046937]
[1734465745425,0.456933,106530.0,106510.0,0.046939]
[1734465745426,0.046937,106520.0,106510.0,0.046939]
[1734465745721,0.3608,106520.0,106510.0,0.046939]
[1734465747130,0.47543084,106520.0,106510.0,0.046939]
[1734465748927,0.407737,106520.0,106510.0,0.046939]
[1734465749225,0.407737,106520.0,106510.0,0.05574364]
[1734465750132,0.407737,106520.0,106510.0,0.046939]
[1734465751022,0.47543084,106520.0,106510.0,0.046939]
[1734465751418,0.407737,106520.0,106510.0,0.046939]
[1734465753728,0.046941,106510.0,106500.0,0.05573848]
[1734465753932,0.56263484,106510.0,106500.0,0.07833154]
[1734465754118,0.494941,106510.0,106500.0,0.046945]
[1734465754326,0.448,106510.0,106500.0,0.046945]
[1734465755230,0.49,106510.0,106500.0,0.046945]
[1734465758937,0.60463484,106510.0,106500.0,0.07833154]
[1734465759129,0.536941,106510.0,106500.0,0.05574414]
[1734465759639,0.60463484,106510.0,106490.0,0.08751929]
[1734465759840,0.3608,106500.0,106490.0,0.08751929]
[1734465760147,0.3608,106500.0,106490.0,0.05613275]
[1734465761541,0.42849384,106500.0,106490.0,0.04698843]
[1734465762546,0.3608,106500.0,106490.0,0.11468227]
[1734465762833,0.3608,106500.0,106490.0,0.14606881]
[1734465763044,0.3608,106500.0,106490.0,0.07837497]
[1734465763227,0.3608,106500.0,106490.0,0.04698843]
[1734465764034,0.3608,106500.0,106490.0,0.11468227]
[1734465764238,0.3608,106500.0,106490.0,0.14606881]
[1734465764429,0.3608,106500.0,106490.0,0.11468227]
[1734465767442,0.3608,106500.0,106490.0,0.13726967]
[1734465768035,0.3608,106510.0,106490.0,0.13726967]
[1734465768235,0.3608,106510.0,106500.0,0.11463984]
[1734465768443,0.3608,106520.0,106510.0,0.046941]
[1734465768738,0.3608,106520.0,106510.0,0.14602138]
[1734465768938,0.3608,106520.0,106510.0,0.07832754]
[1734465769742,0.3608,106520.0,106510.0,0.0695284]
[1734465770142,0.3608,106520.0,106510.0,0.046941]
[1734465772145,0.4943,106530.0,106510.0,0.11463484]
[1734465772448,0.4943,106530.0,106520.0,0.046937]
[1734465772845,0.4938,106530.0,106520.0,0.046937]
[1734465773951,0.4943,106530.0,106520.0,0.046937]
[1734465774842,0.4938,106530.0,106520.0,0.046937]
[1734465775850,0.4943,106530.0,106520.0,0.046937]
[1734465776845,0.4938,106530.0,106520.0,0.046937]
[1734465777649,0.4938,106530.0,106500.0,0.43912854]
[1734465777946,0.3608,106510.0,106500.0,0.07832854]
[1734465778142,0.3608,106510.0,106500.0,0.0695294]
[1734465778347,0.497441,106510.0,106500.0,0.046942]
[1734465780351,0.046946,106500.0,106490.0,0.08787804]
[1734465780546,0.450846,106500.0,106490.0,0.0564915]
[1734465780744,0.4039,106500.0,106490.0,0.0559915]
[1734465780955,0.0431,106500.0,106490.0,0.14627274]
[1734465781145,0.0431,106500.0,106490.0,0.15507188]
[1734465781652,0.00086477,106500.0,106490.0,1.0213901]
[1734465781853,0.4505,106510.0,106500.0,0.046946]
[1734465782051,0.4505,106510.0,106500.0,0.05574514]
[1734465782444,0.4505,106510.0,106500.0,0.046946]
[1734465783245,0.4505,106510.0,106500.0,0.11463984]
[1734465783446,0.4505,106510.0,106500.0,0.046946]
[1734465787153,0.0439,106510.0,106500.0,0.47543984]
[1734465787756,0.0439,106510.0,106500.0,0.9897572]
[1734465788148,0.0439,106510.0,106500.0,0.48423898]
[1734465788459,0.0439,106510.0,106500.0,0.47543984]
[1734465790655,0.3608,106520.0,106510.0,0.046941]
[1734465792162,0.3608,106520.0,106510.0,0.11463484]
[1734465792361,0.407737,106520.0,106510.0,0.046941]
[1734465792663,0.3608,106520.0,106510.0,0.046941]
[1734465794456,0.3608,106520.0,106510.0,0.05592564]
[1734465797957,0.3608,106520.0,106510.0,0.12361948]
[1734465798151,0.4939,106530.0,106520.0,0.046937]
[1734465798358,0.3613,106540.0,106520.0,0.11463084]
[1734465798555,0.3613,106540.0,106530.0,0.11462584]
[1734465798758,0.1366084,106550.0,106530.0,0.55191882]
[1734465799057,0.0898,106550.0,106540.0,0.47546227]
[1734465799257,0.0456,106550.0,106540.0,0.12346141]
[1734465800252,0.0456,106550.0,106540.0,0.11466227]
[1734465800453,0.4064,106550.0,106540.0,0.04696843]
[1734465800759,0.0005,106540.0,106530.0,0.07649298]
[1734465800960,0.0005,106540.0,106530.0,0.12342498]
[1734465801754,0.3613,106540.0,106530.0,0.05573114]
[1734465802061,0.450928,106540.0,106530.0,0.046932]
[1734465802264,0.4483,106540.0,106530.0,0.046932]
[1734465802463,1.2983,106540.0,106530.0,0.046932]
[1734465802866,0.4483,106540.0,106530.0,0.046932]
[1734465803167,0.56292584,106540.0,106520.0,0.07837844]
[1734465803466,0.3608,106530.0,106520.0,0.0695793]
[1734465804052,0.3608,106530.0,106520.0,0.046934]
[1734465804467,0.407732,106530.0,106520.0,0.046934]
[1734465805368,0.3608,106530.0,106520.0,0.046934]
[1734465805669,0.407733,106530.0,106520.0,0.046934]
[1734465806561,0.407733,106530.0,106520.0,0.0695793]
[1734465806965,0.407733,106530.0,106520.0,0.046934]
[1734465808272,0.3608,106530.0,106520.0,0.046934]
[1734465809663,0.7216,106530.0,106520.0,0.046934]
[1734465811170,0.7216,106530.0,106520.0,0.11462784]
[1734465811475,0.4483,106540.0,106530.0,0.046933]
[1734465812580,0.56292184,106540.0,106530.0,0.046933]
[1734465814874,0.5815133,106540.0,106530.0,0.046933]
[1734465815473,0.59042799,106540.0,106520.0,0.01]
[1734465815791,0.3608,106530.0,106520.0,0.056937]
[1734465820285,0.47543084,106530.0,106520.0,0.056937]
[1734465821781,0.47543084,106530.0,106520.0,0.01]
[1734465823067,0.47543084,106530.0,106510.0,0.0226453]
[1734465823274,0.52063684,106520.0,106500.0,0.09383685]
[1734465823584,0.51783984,106510.0,106500.0,0.09242853]
[1734465823783,0.51783984,106510.0,106500.0,0.09362939]
[1734465824079,0.51783984,106510.0,106500.0,0.07098409]
[1734465824472,0.51783984,106510.0,106500.0,0.056948]
[1734465824677,0.51783984,106510.0,106500.0,0.01]
[1734465824870,0.51783984,106510.0,106500.0,0.05695]
[1734465826101,0.51783984,106510.0,106500.0,0.01]
[1734465826338,0.56063984,106510.0,106500.0,0.01]
[1734465826913,0.56063984,106510.0,106500.0,0.05695]
[1734465827785,0.56063984,106510.0,106500.0,0.01]
[1734465827984,0.57481423,106510.0,106500.0,0.0105]
[1734465829087,0.57481423,106510.0,106500.0,0.01]
[1734465829993,0.57481423,106510.0,106500.0,0.0105]
[1734465830189,0.57481423,106510.0,106500.0,0.05745]
[1734465832178,3.9e-07,106510.0,106500.0,0.41825]
[1734465832489,0.00149256,106560.0,106550.0,0.046928]
[1734465832717,0.36229256,106560.0,106550.0,0.12462184]
[1734465832986,0.36229256,106560.0,106550.0,0.01]
[1734465833181,0.4729864,106560.0,106550.0,0.056928]
[1734465833382,0.40529256,106560.0,106550.0,0.056928]
[1734465834790,0.36229256,106560.0,106550.0,0.12462184]
[1734465835982,0.36229256,106560.0,106550.0,0.056928]
[1734465837388,0.4299864,106560.0,106550.0,0.056928]
[1734465837589,0.36229256,106560.0,106550.0,0.056928]
[1734465838883,1.6269104,106560.0,106550.0,0.00987928]
[1734465839191,0.046931,106550.0,106530.0,0.046936]
[1734465839490,0.7216,106540.0,106530.0,0.046936]
[1734465839698,0.7654,106540.0,106530.0,0.056936]
[1734465840192,1.6154,106540.0,106530.0,0.056936]
[1734465840385,0.7654,106540.0,106530.0,0.056936]
[1734465843292,0.7216,106540.0,106530.0,0.12462984]
[1734465843592,0.3608,106540.0,106530.0,0.21002984]
[1734465844485,0.3613,106550.0,106530.0,0.21002984]
[1734465844791,0.3608,106540.0,106530.0,0.142336]
[1734465848898,0.3608,106540.0,106530.0,0.21002984]
[1734465849499,0.47542684,106540.0,106530.0,0.01]
[1734465849699,0.51832684,106540.0,106530.0,0.01]
[1734465849899,0.56422684,106540.0,106530.0,0.01]
[1734465851006,0.496533,106540.0,106530.0,0.056937]
[1734465851488,0.496533,106540.0,106530.0,0.01]
[1734465851888,0.496533,106540.0,106530.0,0.056937]
[1734465851889,0.4037,106540.0,106530.0,0.056937]
[1734465852399,0.450633,106540.0,106530.0,0.056937]
[1734465854511,0.4037,106540.0,106530.0,0.056937]
[1734465861501,0.4037,106540.0,106530.0,0.07131607]
[1734465863401,0.4037,106540.0,106530.0,0.056937]
[1734465864413,0.450633,106540.0,106530.0,0.056937]
[1734465865712,0.51832684,106540.0,106530.0,0.01]
[1734465867103,0.81832684,106540.0,106510.0,0.01397468]
[1734465867320,0.046946,106510.0,106500.0,0.04835855]
[1734465867526,0.407746,106510.0,106500.0,0.05835855]
[1734465867737,0.452046,106510.0,106500.0,0.05835855]
[1734465870440,0.494946,106510.0,106500.0,0.05835855]
[1734465870935,0.56263984,106510.0,106500.0,0.01]
[1734465873642,0.5770121,106510.0,106500.0,0.01]
[1734465875031,0.5770121,106510.0,106500.0,0.05695]
[1734465875244,0.448,106510.0,106500.0,0.12464384]
[1734465875545,0.4051,106510.0,106500.0,0.12464384]
[1734465875738,0.4051,106510.0,106500.0,0.05695]
[1734465877344,0.4051,106510.0,106500.0,0.12464384]
[1734465877543,0.3608,106510.0,106500.0,0.19233768]
[1734465877746,0.3608,106510.0,106500.0,0.23413768]
[1734465877939,0.3608,106510.0,106500.0,0.56558212]
[1734465878345,0.48829573,106530.0,106520.0,0.046941]
[1734465878645,0.48829573,106530.0,106520.0,0.056941]
[1734465881918,0.55598957,106530.0,106520.0,0.056941]
[1734465882318,0.4045,106530.0,106520.0,0.056941]
[1734465882822,1.2545,106530.0,106520.0,0.056941]
[1734465883221,0.4045,106530.0,106520.0,0.056941]
[1734465886322,0.7653,106530.0,106520.0,0.056941]
[1734465886528,0.7653,106530.0,106520.0,0.06620909]
[1734465888118,0.0437,106530.0,106520.0,0.06620909]
[1734465888321,0.7653,106530.0,106520.0,0.06620909]
[1734465898735,0.83299384,106530.0,106520.0,0.06620909]
[1734465899423,0.7653,106530.0,106520.0,0.06620909]
[1734465907341,0.91698654,106530.0,106520.0,0.056941]
[1734465907638,0.046941,106520.0,106510.0,0.046943]
[1734465907843,0.60284631,106520.0,106510.0,0.01]
[1734465908431,0.71483658,106520.0,106490.0,0.0483614]
[1734465908626,0.78929384,106500.0,106490.0,0.0014084]
[1734465908828,0.78929384,106500.0,106460.0,0.45014819]
[1734465908829,0.98824915,106500.0,106460.0,0.45014819]
[1734465909130,0.78929384,106470.0,106460.0,0.046967]
[1734465909326,0.78929384,106470.0,106460.0,0.056967]
[1734465909327,0.7216,106470.0,106460.0,0.056967]
[1734465910441,0.78929384,106470.0,106460.0,0.056967]
[1734465910832,0.83189384,106470.0,106460.0,0.056967]
[1734465911044,0.87885684,106470.0,106460.0,0.056967]
[1734465911347,0.94655068,106470.0,106460.0,0.01]
[1734465911543,0.046968,106460.0,106450.0,0.02027104]
[1734465911735,0.52026184,106460.0,106450.0,0.01140902]
[1734465912045,0.52026184,106460.0,106450.0,0.01]
[1734465912243,0.56156184,106460.0,106450.0,0.01]
[1734465912753,0.046975,106450.0,106430.0,0.04698]
[1734465912932,0.78929384,106440.0,106430.0,0.05698]
[1734465914435,0.85698768,106440.0,106400.0,0.1]
[1734465914633,0.3608,106410.0,106400.0,0.15623307]
[1734465914841,0.3608,106410.0,106400.0,0.16623307]
[1734465915249,0.3608,106420.0,106400.0,0.23392691]
[1734465915451,0.3608,106420.0,106410.0,0.12468384]
[1734465916035,0.3608,106420.0,106410.0,0.49237768]
[1734465916236,0.3608,106420.0,106410.0,0.51128384]
[1734465916438,0.3608,106420.0,106410.0,0.57897768]
[1734465916951,0.3608,106420.0,106410.0,0.51128384]
[1734465917650,0.36220987,106440.0,106420.0,0.046986]
[1734465917957,0.36220987,106440.0,106430.0,0.11467484]
[1734465918651,0.3608,106440.0,106430.0,0.11467484]
[1734465918948,0.3608,106440.0,106430.0,0.41467484]
[1734465919339,0.3608,106440.0,106430.0,0.45937484]
[1734465920650,0.3608,106440.0,106430.0,0.15937484]
[1734465920943,0.3608,106440.0,106430.0,0.11467484]
[1734465921151,0.3608,106440.0,106430.0,0.046981]
[1734465921740,0.3608,106440.0,106430.0,0.11467484]
[1734465922144,0.3608,106440.0,106430.0,0.046981]
[1734465923055,0.3608,106440.0,106430.0,0.05591623]
[1734465923938,0.3608,106440.0,106430.0,0.12361007]
[1734465924349,0.3608,106440.0,106430.0,0.05591623]
[1734465925244,0.3608,106440.0,106430.0,0.12361007]
[1734465935153,0.47547084,106440.0,106430.0,0.05591623]
[1734465935461,0.4053,106440.0,106430.0,0.12361007]
[1734465935656,0.452277,106440.0,106430.0,0.12361007]
[1734465936855,0.452277,106440.0,106430.0,0.05591623]
[1734465937850,0.4053,106440.0,106430.0,0.05591623]
[1734465938053,0.452277,106440.0,106430.0,0.05591623]
[1734465938255,0.452277,106440.0,106420.0,0.046985]
[1734465938256,0.51997084,106440.0,106420.0,0.046985]
[1734465938460,0.407781,106430.0,106420.0,0.046985]
[1734465938763,0.3608,106430.0,106420.0,0.05589964]
[1734465939961,0.47547484,106430.0,106410.0,0.01]
[1734465940150,0.47547484,106430.0,106410.0,0.056987]
[1734465940151,0.4026,106420.0,106410.0,0.056987]
[1734465940357,0.4466,106420.0,106410.0,0.056987]
[1734465942175,0.56127984,106420.0,106400.0,0.17859955]
[1734465942363,0.3608,106410.0,106400.0,0.156992]
[1734465942572,0.3608,106410.0,106400.0,0.166098]
[1734465942880,0.42849384,106410.0,106400.0,0.166098]
[1734465943062,0.42857302,106410.0,106400.0,0.166098]
[1734465943465,0.42857302,106410.0,106400.0,0.156992]
[1734465943674,0.47556302,106410.0,106400.0,0.156992]
[1734465944169,0.47556302,106410.0,106400.0,0.032]
[1734465944374,0.55956266,106410.0,106390.0,0.056997]
[1734465944578,0.3608,106400.0,106390.0,0.056997]
[1734465947372,0.4051,106400.0,106390.0,0.056997]
[1734465948076,0.4051,106400.0,106390.0,0.06613282]
[1734465950171,0.47279384,106400.0,106390.0,0.06613282]
[1734465950574,0.47279384,106400.0,106390.0,0.056997]
[1734465951164,0.4051,106400.0,106390.0,0.056997]
[1734465952582,0.51978784,106400.0,106390.0,0.056997]
[1734465956070,0.51978784,106400.0,106390.0,0.01]
[1734465956773,0.81978784,106400.0,106390.0,0.01]
[1734465956976,0.11469684,106380.0,106370.0,0.047006]
[1734465957175,0.83629684,106380.0,106370.0,0.047006]
[1734465957576,0.88330284,106380.0,106360.0,0.05625345]
[1734465957878,0.47269384,106370.0,106360.0,0.04701]
[1734465960275,0.3608,106370.0,106360.0,0.04701]
[1734465962372,0.42849384,106370.0,106360.0,0.04701]
[1734465963083,0.42849384,106370.0,106350.0,0.28904406]
[1734465963284,0.42849384,106360.0,106350.0,0.33605706]
[1734465963783,0.3608,106360.0,106350.0,0.33605706]
[1734465964180,0.3608,106360.0,106350.0,0.28027519]
[1734465964491,0.3608,106360.0,106350.0,0.56011904]
[1734465964790,0.3608,106360.0,106350.0,0.33605706]
[1734465964979,0.42849384,106360.0,106350.0,0.28039468]
[1734465965489,0.3608,106360.0,106350.0,0.28039468]
[1734465966285,0.3608,106360.0,106350.0,0.33605706]
[1734465970494,0.3608,106360.0,106350.0,0.67199584]
[1734465971085,0.3608,106360.0,106350.0,0.33605706]
[1734465971589,0.3608,106360.0,106350.0,0.67199584]
[1734465976077,0.3608,106360.0,106350.0,0.66279563]
[1734465976284,0.42849384,106360.0,106350.0,0.22566132]
[1734465976492,0.52080584,106360.0,106350.0,0.22566132]
[1734465976683,0.52080584,106360.0,106350.0,0.047013]
[1734465980288,0.52080584,106360.0,106340.0,0.38295778]
[1734465980500,0.52080584,106360.0,106340.0,0.047019]
[1734465980501,0.47550984,106350.0,106340.0,0.047019]
[1734465980887,0.47550984,106350.0,106330.0,0.39296078]
[1734465981086,0.3608,106340.0,106330.0,0.39296078]
[1734465981790,0.3608,106340.0,106330.0,0.057022]
[1734465982895,0.407821,106340.0,106330.0,0.057022]
[1734465983096,0.47551484,106340.0,106330.0,0.01]
[1734465983289,0.51841484,106340.0,106330.0,0.057025]
[1734465985295,0.51841484,106340.0,106330.0,0.01]
[1734465985488,0.51850557,106340.0,106330.0,0.01]
[1734465985806,0.56090557,106340.0,106330.0,0.01]
[1734465986191,0.56090557,106340.0,106330.0,0.23478197]
[1734465990698,0.57029077,106340.0,106330.0,0.23478197]
[1734465990899,0.37027593,106340.0,106330.0,0.28180697]
[1734465991108,0.37027593,106340.0,106330.0,0.32720697]
[1734465991409,0.43796977,106340.0,106330.0,0.32720697]
[1734465993102,0.48499077,106340.0,106330.0,0.32720697]
[1734465994107,0.48499077,106340.0,106330.0,0.28018197]
[1734465994313,0.48499077,106340.0,106330.0,0.23478197]
[1734465994998,1.33499077,106340.0,106330.0,0.23478197]
[1734465996011,1.33499077,106340.0,106330.0,0.28180697]
[1734465996202,1.22027593,106340.0,106330.0,0.28180697]
[1734465996404,0.37027593,106340.0,106330.0,0.28180697]
[1734465996900,1.22027593,106340.0,106330.0,0.28180697]
[1734465998113,1.33499077,106340.0,106330.0,0.23478197]
[1734465998503,0.48499077,106340.0,106330.0,0.23478197]
[1734466003318,0.78499077,106340.0,106330.0,0.23478197]
[1734466003513,0.48499077,106340.0,106330.0,0.23478197]
[1734466007217,0.84579077,106340.0,106330.0,0.23478197]
[1734466008121,0.84579077,106340.0,106330.0,0.51602611]
[1734466009319,0.92976736,106340.0,106330.0,0.29124414]
[1734466010217,0.92976736,106340.0,106330.0,0.13450259]
[1734466010419,0.77809693,106340.0,106330.0,0.13450259]
[1734466010607,0.84579077,106340.0,106330.0,0.33593878]
[1734466011616,0.84579077,106340.0,106330.0,0.38296378]
[1734466012022,0.73107593,106340.0,106330.0,0.45065762]
[1734466012224,0.66880373,106340.0,106330.0,0.529691]
[1734466012419,0.66880373,106340.0,106330.0,0.50639716]
[1734466013119,0.66880373,106340.0,106330.0,0.48363932]
[1734466014923,0.73649757,106340.0,106330.0,0.48363932]
[1734466015135,0.78351857,106340.0,106330.0,0.43923932]
[1734466015328,0.78351857,106340.0,106330.0,0.04709147]
[1734466015834,0.78351857,106340.0,106330.0,6.647e-05]
[1734466016131,0.78351857,106340.0,106330.0,0.41497216]
[1734466016635,0.78351857,106340.0,106330.0,0.39221432]
[1734466017427,0.78351857,106340.0,106330.0,6.647e-05]
[1734466017824,0.78351857,106340.0,106310.0,0.40302676]
[1734466018030,0.047025,106330.0,106320.0,0.34783559]
[1734466018228,0.768625,106330.0,106320.0,0.01]
[1734466018436,0.88069251,106330.0,106320.0,0.01]
[1734466019522,0.047034,106310.0,106300.0,0.1]
[1734466019729,0.83632784,106310.0,106300.0,0.11]
[1734466021238,0.83632784,106310.0,106300.0,0.1]
[1734466024136,0.85058477,106310.0,106300.0,0.1]
[1734466027239,0.047039,106300.0,106290.0,0.01]
[1734466027428,0.47553284,106300.0,106290.0,0.01]
[1734466029337,0.51843284,106300.0,106290.0,0.01]
[1734466029638,0.58612668,106300.0,106290.0,0.01]
[1734466032432,0.58612668,106300.0,106260.0,0.134954]
[1734466032635,0.83634584,106270.0,106260.0,0.134954]
[1734466032840,0.78342569,106270.0,106260.0,0.134954]
[1734466033749,0.78354048,106270.0,106250.0,0.10056]
[1734466033943,0.42849384,106260.0,106250.0,0.17906]
[1734466034139,0.42849384,106260.0,106250.0,0.132]
[1734466034452,0.47554984,106260.0,106250.0,0.132]
[1734466034748,0.47554984,106260.0,106250.0,0.047061]
[1734466034947,0.47554984,106260.0,106250.0,0.132361]
[1734466035140,0.47554984,106260.0,106250.0,0.0853]
[1734466035338,0.407856,106260.0,106250.0,0.0853]
[1734466035838,0.47554984,106260.0,106240.0,0.047433]
[1734466036136,0.3608,106250.0,106240.0,0.047433]
[1734466036940,0.47555484,106250.0,106240.0,0.00037]
[1734466037138,0.52025484,106250.0,106240.0,0.00037]
[1734466037847,0.52025484,106250.0,106240.0,0.047435]
[1734466037848,0.42849384,106250.0,106240.0,0.047435]
[1734466038451,0.42849384,106250.0,106240.0,0.00037]
[1734466038452,0.47555484,106250.0,106240.0,0.00037]
[1734466041640,0.52055484,106250.0,106240.0,0.00037]
[1734466042446,0.52055484,106250.0,106220.0,0.02582887]
[1734466042643,0.83636384,106230.0,106220.0,0.02582887]
[1734466043250,0.88343684,106230.0,106210.0,0.047078]
[1734466043441,0.42849384,106220.0,106200.0,0.31849377]
[1734466043644,0.42849384,106210.0,106200.0,0.31849377]
[1734466043940,0.3608,106210.0,106200.0,0.31849377]
[1734466045449,0.3608,106210.0,106200.0,0.33257828]
[1734466045642,0.3608,106210.0,106200.0,0.45907828]
[1734466046754,0.3608,106210.0,106200.0,0.52677212]
[1734466047149,0.407878,106210.0,106200.0,0.45907828]
[1734466048867,0.47557184,106210.0,106200.0,0.27499377]
[1734466049358,0.47557184,106210.0,106200.0,0.44499377]
[1734466049559,0.47557184,106210.0,106200.0,0.443582]
[1734466049751,0.407878,106210.0,106200.0,0.443582]
[1734466049947,0.407878,106210.0,106200.0,0.273582]
[1734466050147,0.407878,106210.0,106200.0,0.1]
[1734466050148,0.47557184,106210.0,106200.0,0.1]
[1734466050350,0.56267184,106210.0,106200.0,0.1]
[1734466050752,0.494978,106210.0,106200.0,0.1]
[1734466050956,0.56267184,106210.0,106200.0,0.1]
[1734466051146,0.494978,106210.0,106200.0,0.1]
[1734466051350,0.56267184,106210.0,106200.0,0.1]
[1734466052256,0.56267184,106210.0,106200.0,0.147083]
[1734466052462,0.494978,106210.0,106200.0,0.147083]
[1734466053059,0.56267184,106210.0,106200.0,0.147083]
[1734466053760,0.3608,106210.0,106200.0,0.147083]
[1734466054154,0.3608,106210.0,106200.0,0.192683]
[1734466056151,0.3608,106220.0,106210.0,0.047078]
[1734466056356,0.4667869,106230.0,106220.0,0.047074]
[1734466056566,0.89528074,106230.0,106220.0,0.047074]
[1734466056861,0.047074,106220.0,106210.0,0.0868]
[1734466057061,0.47556784,106220.0,106210.0,0.0418]
[1734466057257,0.47556784,106220.0,106210.0,0.088878]
[1734466057764,0.47556784,106220.0,106210.0,0.0418]
[1734466058065,0.51716784,106220.0,106210.0,0.0418]
[1734466059569,0.51716784,106220.0,106200.0,0.23768]
[1734466059757,0.3608,106210.0,106200.0,0.23768]
[1734466060561,0.3608,106210.0,106200.0,0.27885847]
[1734466062470,0.3608,106210.0,106200.0,0.23325847]
[1734466064059,0.3608,106210.0,106200.0,0.19208]
[1734466064265,0.44490514,106210.0,106200.0,0.19208]
[1734466064466,0.47557184,106210.0,106200.0,0.14708]
[1734466064670,0.42262566,106210.0,106200.0,0.18825847]
[1734466065270,0.42262566,106210.0,106200.0,0.14708]
[1734466066078,0.5067308,106210.0,106200.0,0.14708]
[1734466067075,0.39195896,106210.0,106200.0,0.14708]
[1734466069080,0.53469317,106210.0,106200.0,0.14708]
[1734466069779,0.54756609,106210.0,106200.0,0.14708]
[1734466071182,0.50048809,106210.0,106200.0,0.14708]
[1734466073278,0.58451496,106210.0,106200.0,0.14708]
[1734466073975,0.51682112,106210.0,106200.0,0.14708]
[1734466075177,0.40475361,106210.0,106200.0,0.14708]
[1734466075785,0.51952545,106210.0,106200.0,0.14708]
[1734466075987,0.56202545,106210.0,106200.0,0.1]
[1734466076287,0.67409296,106210.0,106200.0,0.14118412]
[1734466077282,0.59006609,106210.0,106200.0,0.14118412]
[1734466081097,0.67406787,106210.0,106200.0,0.14118412]
[1734466082690,0.74176171,106210.0,106200.0,0.14118412]
[1734466082882,0.67406787,106210.0,106200.0,0.14118412]
[1734466083600,0.74176171,106210.0,106200.0,0.14118412]
[1734466083783,0.67406787,106210.0,106200.0,0.1]
[1734466083988,0.7418332,106210.0,106200.0,0.1]
[1734466084194,0.62976569,106210.0,106200.0,0.14118412]
[1734466084396,0.7418332,106210.0,106200.0,0.14118412]
[1734466084586,0.62976569,106210.0,106200.0,0.14118412]
[1734466085680,0.62976569,106210.0,106190.0,0.01]
[1734466085893,0.047097,106170.0,106150.0,0.44169126]
[1734466086189,0.3608,106160.0,106150.0,0.48619126]
[1734466086396,0.3608,106160.0,106150.0,0.66619126]
[1734466086589,0.3608,106160.0,106150.0,0.271603]
[1734466089082,0.448894,106180.0,106170.0,0.047096]
[1734466089486,0.40930147,106190.0,106170.0,0.01]
[1734466089690,0.36221347,106190.0,106180.0,0.089392]
[1734466089891,0.40930047,106190.0,106180.0,0.089392]
[1734466097382,0.42403421,106190.0,106170.0,0.50429139]
[1734466097584,0.407892,106180.0,106170.0,0.01]
[1734466097798,0.407892,106180.0,106170.0,0.057096]
[1734466099397,0.451492,106180.0,106170.0,0.057096]
[1734466102995,0.3608,106180.0,106170.0,0.12478984]
[1734466103194,0.3608,106180.0,106170.0,0.6034781]
[1734466103500,0.3608,106180.0,106170.0,1.08206798]
[1734466104393,0.3608,106180.0,106170.0,0.61228723]
[1734466104600,0.3608,106180.0,106170.0,0.6034781]
[1734466104905,0.3608,106180.0,106170.0,1.08206798]
[1734466105297,0.35634037,106190.0,106170.0,0.68747972]
[1734466105493,0.35634037,106190.0,106180.0,0.5091037]
[1734466105702,0.35634037,106190.0,106180.0,0.44140986]
[1734466106601,0.30925337,106190.0,106180.0,0.6791037]
[1734466107189,0.30925337,106190.0,106180.0,0.28478584]
[1734466107507,0.37108015,106190.0,106180.0,0.45021899]
[1734466107692,0.34508631,106190.0,106180.0,0.047092]
[1734466115906,0.34508631,106190.0,106180.0,0.05944888]
[1734466116610,0.047092,106180.0,106170.0,0.50455866]
[1734466116906,0.492592,106180.0,106170.0,0.45164868]